[Event "American Cup Champions 2022"]
[Site "Saint Louis"]
[Date "2022.04.24"]
[Round "3.1"]
[White "Caruana, Fabiano"]
[Black "Dominguez Perez, Leinier"]
[Result "1-0"]
[ECO "A33"]
[WhiteElo "2792"]
[BlackElo "2752"]
[Annotator "TA"]
[PlyCount "105"]
[EventDate "2022.04.20"]
[EventType "k.o."]
[EventCountry "USA"]
[SourceTitle "playchess.com"]
[Source "ChessBase"]
[SourceQuality "1"]
[TimeControl "5400+30"]

{[%evp 13,105,0,0,0,0,0,0,0,-4,-15,-6,-63,0,-7,16,25,22,21,23,14,26,27,23,24,72,65,75,45,74,67,66,66,66,66,66,66,61,15,15,12,12,16,11,13,32,32,32,32,32,7,7,7,7,7,6,0,0,0,0,0,0,0,0,0,108,87,70,8,16,22,21,22,70,68,68,68,68,68,63,63,64,63,12749,12749,7202,7202,6848,6826,6610,6610,6610,6599,6228,6228]} 1. c4 {[%emt 0:00:04]} c5 {[%emt 0:01:12]} 2. Nf3 {[%emt 0:00:07][%cal Bg1f3,Bf3d4,Bd4b5][%mdl 32]} Nf6 {[%emt 0:00:04]} 3. Nc3 {[%emt 0:00:18]} Nc6 {[%emt 0:00:11][%cal Bb8c6,Bc6e5,Be5c4][%mdl 32]} 4. d4 {[%emt 0:00:16]} cxd4 {[%emt 0:00:07]} 5. Nxd4 {[%emt 0:00:03]} e6 {[%emt 0:00:04]} 6. g3 {[%emt 0:00:15]} Qb6 {[%emt 0:00:13]} 7. Ndb5 {[%emt 0:00:17] is cutting edge theory.} Ne5 {[%emt 0:00:20]} 8. Bf4 {[%emt 0:00:11] A33: Symmetrical English: 2 Nf3 Nf6 3 d4 cxd4 4 Nxd4 e6 5 Nc3 Nc6.} Nfg4 {[%emt 0:01:33][%cal Oe5f3] [#] ( -> ...Nf3+!)} 9. e3 {[%emt 0:00:21]} a6 {[%emt 0:00:14][%cal Ba7a6,Ba6b5][%mdl 32]} 10. h3 {[%emt 0:00:07] The position is equal.} axb5 {[%emt 0:00:41]} 11. hxg4 {[%emt 0:00:07]} Nxc4 {[%emt 0:00:21] [#]} 12. g5 $1 $146 {[%emt 0:00:26][%mdl 8] A top novelty.} (12. Qb3 $11 d5 13. Bxc4 dxc4 14. Qxb5+ Qxb5 15. Nxb5) ({Predecessor:} 12. Qb3 d5 13. Bxc4 dxc4 14. Qxb5+ Qxb5 15. Nxb5 Bb4+ 16. Ke2 Ke7 17. a3 Bc5 18. Rhd1 {1-0 (42) Giri,A (2776)-Vachier Lagrave,M (2749) Zagreb 2021}) 12... d5 {[%emt 0:43:14]} ({Much weaker is} 12... Nxb2 13. Qb3 Qc6 14. Qxb2 $11) (12... Bb4 $15 13. Bxc4 bxc4) 13. a4 $1 $11 {[%emt 0:01:09]} bxa4 {[%emt 0:16:39]} (13... Be7 {feels hotter.} 14. axb5 Nxb2 15. Qc1 Rxa1 16. Qxa1 Nc4) 14. Bxc4 {[%emt 0:00:14]} dxc4 {[%emt 0:00:07]} 15. Rxa4 {[%emt 0:00:05]} Rxa4 {[%emt 0:00:46]} (15... Qc6 {with more complications.} 16. Rxa8 Qxh1+ 17. Kd2 Qxd1+ 18. Kxd1 Kd7) 16. Qxa4+ {[%emt 0:00:06]} Qc6 {[%emt 0:01:04]} (16... Bd7 {seems wilder.} 17. Qa8+ Ke7 18. O-O f5) 17. Qxc6+ {[%emt 0:00:07]} bxc6 {[%emt 0:00:02]} 18. Be5 {[%emt 0:00:11]} Ke7 {[%emt 0:20:21] [#]} (18... Bb7 $11) 19. Ne4 $1 $16 {[%emt 0:00:49]} Bb7 {[%emt 0:00:54][%cal Oc6c5]} 20. Rh4 {[%emt 0:14:12] 0x0.001b374052dedp-1022s more active pieces.} Ke8 {[%emt 0:06:34]} 21. Nd2 {[%emt 0:02:59]} h6 {[%emt 0:01:10]} 22. Nxc4 {[%emt 0:00:41]} Ba6 {[%emt 0:01:02]} 23. Nd6+ {[%emt 0:10:08]} Bxd6 {[%emt 0:00:08]} 24. Bxd6 $14 {[%emt 0:00:04][%mdl 4096] Endgame KRB-KRB} Bb5 {[%emt 0:02:07]} 25. Be5 {[%emt 0:03:00]} (25. e4 $14 {was preferrable.}) 25... Kf8 $11 {[%emt 0:00:01]} 26. f3 {[%emt 0:15:05]} Kg8 {[%emt 0:01:32]} 27. g6 {[%emt 0:00:34]} fxg6 {[%emt 0:00:01]} 28. Rd4 {[%emt 0:00:05]} g5 {[%emt 0:02:02]} 29. Rd8+ {[%emt 0:15:48][%mdl 1024] White has compensation.} Kh7 {[%emt 0:00:02]} 30. Rd7 {[%emt 0:00:04][%csl Ge5][%cal Rd7g7]} Rg8 {[%emt 0:00:02]} 31. Kf2 {[%emt 0:04:43]} h5 {[%emt 0:00:04]} 32. e4 {[%emt 0:00:07]} Kh6 {[%emt 0:02:13]} 33. Ke3 {[%emt 0:02:56]} Kg6 {[%emt 0:00:31]} 34. b3 {[%emt 0:04:06]} h4 {[%emt 0:01:10]} 35. g4 {[%emt 0:03:14]} Kh7 {[%emt 0:00:04]} 36. Kf2 {[%emt 0:01:39]} Kg6 {[%emt 0:00:29]} 37. Bc3 {[%emt 0:03:31]} Kh7 {[%emt 0:00:50]} 38. Re7 {[%emt 0:03:37]} Ra8 {[%emt 0:00:19]} (38... h3 $11) 39. Rxg7+ $16 {[%emt 0:03:12]} Kh6 {[%emt 0:00:01]} 40. Bf6 {[%emt 0:01:45]} ({White should try} 40. f4 $1 $14 Ra2+ 41. Kf3 Be2+ 42. Ke3 Bxg4 43. fxg5+ Kh5 44. Rg8) 40... Ra2+ {[%emt 0:00:35]} 41. Ke3 {[%emt 0:00:24]} e5 $1 {[%emt 0:01:22]} 42. Bxe5 {[%emt 0:00:04]} h3 {[%emt 0:00:33]} (42... Re2+ $11 43. Kd4 Rd2+ 44. Kc5 Rf2) 43. Rg8 {[%emt 0:04:52]} c5 {[%emt 0:00:24][%csl Gb5][%cal Ra2e2]} 44. f4 $1 {[%emt 0:01:04]} gxf4+ {[%emt 0:00:10]} 45. Kxf4 {[%emt 0:01:23] Threatens to win with g5+.} Rf2+ $1 {[%emt 0:00:09]} 46. Kg3 {[%emt 0:00:52]} Re2 {[%emt 0:00:02]} 47. Kf3 {[%emt 0:00:55] Black must now prevent g5+.} Rd2 $2 {[%emt 0:01:45][%mdl 8192] This costs Black the game.} (47... Re1 $14) 48. g5+ $18 {[%emt 0:00:53] White is clearly winning.} Kh5 {[%emt 0:00:00]} 49. Rh8+ {[%emt 0:00:26]} Kg6 {[%emt 0:00:01]} 50. Rh6+ {[%emt 0:00:05]} Kf7 {[%emt 0:00:01]} 51. g6+ {[%emt 0:00:07][%cal Bg5g6,Bg6g7][%mdl 32]} Ke7 {[%emt 0:00:06]} 52. g7 {[%emt 0:00:24] Rh7 would kill now.} Rg2 {[%emt 0:00:02]} 53. Rxh3 {[%emt 0:00:37] Weighted Error Value: White=0.07 (flawless) /Black=0.13 (very precise)} 1-0

[Event "American Cup Champions 2022"]
[Site "Saint Louis"]
[Date "2022.04.25"]
[Round "3.2"]
[White "Dominguez Perez, Leinier"]
[Black "Caruana, Fabiano"]
[Result "1/2-1/2"]
[ECO "C50"]
[WhiteElo "2752"]
[BlackElo "2792"]
[Annotator "TA"]
[PlyCount "109"]
[EventDate "2022.04.20"]
[EventType "k.o."]
[EventCountry "USA"]
[SourceTitle "playchess.com"]
[Source "ChessBase"]
[SourceQuality "1"]
[TimeControl "5400+30"]

{[%evp 9,109,15,23,12,20,14,16,24,17,27,24,19,14,-13,0,0,0,0,0,0,0,0,0,0,2,0,0,-6,19,38,19,11,77,64,64,68,65,70,66,71,57,61,70,72,60,62,56,56,76,18,13,9,17,8,8,0,8,8,8,8,0,0,25,29,31,0,0,0,0,0,15,0,0,0,0,0,0,0,0,0,0,0,0,0,0,0,0,0,0,0,0,0,0,0,0,0,0,0,0,0,0,0]} 1. e4 {[%emt 0:00:02]} e5 {[%emt 0:00:04]} 2. Nf3 {[%emt 0:00:07]} Nc6 {[%emt 0:00:04]} 3. Bc4 {[%emt 0:00:19]} Bc5 {[%emt 0:00:09]} 4. O-O {[%emt 0:00:20]} Nf6 {[%emt 0:00:07]} 5. d3 {[%emt 0:00:04]} O-O {[%emt 0:00:09]} 6. Re1 {[%emt 0:00:06] C50: Hungarian Defence and Giuoco Pianissimo.} Ng4 $1 {[%emt 0:01:10][%mdl 4] outshines the older 6...d6.} 7. Re2 {[%emt 0:00:20]} Kh8 {[%emt 0:00:12]} 8. h3 {[%emt 0:00:26]} f5 {[%emt 0:00:20][%cal Of5e4]} 9. Bg5 {[%emt 0:00:11]} ({Much worse is} 9. hxg4 fxg4 10. Ng5 Qf6 $17) 9... Nf6 {[%emt 0:00:24]} 10. Nc3 {[%emt 0:00:14]} d6 {[%emt 0:01:07] [#]} 11. exf5 $146 {[%emt 0:00:25]} ({Predecessor:} 11. Nd5 fxe4 12. dxe4 Be6 13. Nxf6 gxf6 14. Bxe6 fxg5 15. Bg4 Qf6 16. c3 Qg6 17. b4 {0-1 (43) So,W (2772)-Nihal,S (2650) Chess.com INT 2021}) 11... Bxf5 {[%emt 0:04:02]} 12. Na4 {[%emt 0:00:38]} Bb6 {[%emt 0:04:41]} 13. Nxb6 {[%emt 0:00:52]} axb6 {[%emt 0:00:09]} 14. d4 {[%emt 0:00:28][%cal Rd4e5]} h6 {[%emt 0:10:57]} 15. dxe5 {[%emt 0:00:39] [#] Black must now prevent Bxf6.} dxe5 {[%emt 0:00:39]} 16. Bh4 {[%emt 0:00:29]} e4 {[%emt 0:05:57]} 17. Nh2 {[%emt 0:01:09]} Qe8 {[%emt 0:10:44]} 18. Qe1 {[%emt 0:00:57]} Rd8 {[%emt 0:07:43]} (18... Qg6 {keeps more tension.} 19. Qc3 Na5 20. Re3 Nxc4 21. Qxc4 c6) 19. Rd1 {[%emt 0:16:44]} Rxd1 {[%emt 0:04:48]} 20. Qxd1 {[%emt 0:00:03]} Be6 {[%emt 0:03:44]} (20... Nh5 $11) 21. Bxe6 {[%emt 0:21:32]} Qxe6 {[%emt 0:01:23]} 22. Bxf6 {[%emt 0:00:10]} Qxf6 {[%emt 0:22:06]} 23. c3 {[%emt 0:00:20]} e3 {[%emt 0:01:06][%cal Re3f2]} 24. f3 {[%emt 0:03:48]} Qe6 {[%emt 0:02:21]} 25. Qb3 {[%emt 0:15:44]} Qxb3 {[%emt 0:02:02]} 26. axb3 $14 {[%emt 0:00:01][%mdl 4096] Endgame KRN-KRN} Rd8 {[%emt 0:00:46]} 27. Nf1 {[%emt 0:09:40] Prevents Rd2.} Rd1 {[%emt 0:01:23]} 28. Rxe3 {[%emt 0:04:08]} Na5 {[%emt 0:00:03]} 29. b4 {[%emt 0:02:30]} (29. Re8+ $16 Kh7 30. Re7) 29... Nc4 $11 {[%emt 0:01:22][%csl LRb2,LRe3]} 30. Re2 {[%emt 0:06:50] Black should prevent Kf2.} Rb1 $1 {[%emt 0:00:03]} 31. Kf2 {[%emt 0:05:35] Nd2 is the strong threat.} Nxb2 {[%emt 0:00:04]} 32. Re8+ {[%emt 0:00:20]} Kh7 {[%emt 0:00:04]} 33. Ne3 {[%emt 0:03:32]} Nd3+ {[%emt 0:07:34]} 34. Kg3 {[%emt 0:01:57]} Re1 {[%emt 0:00:04]} 35. f4 {[%emt 0:01:32][%cal Bf3f4,Bf4f5][%mdl 32]} Nb2 {[%emt 0:00:37]} 36. Kf2 {[%emt 0:02:00]} Rc1 {[%emt 0:00:50]} 37. f5 {[%emt 0:00:20]} c6 $1 {[%emt 0:04:02] The position is equal.} 38. Re7 {[%emt 0:00:37]} Kg8 $1 {[%emt 0:00:08]} 39. Rxb7 {[%emt 0:00:51]} Rxc3 {[%emt 0:00:46]} 40. Ke2 {[%emt 0:01:50]} h5 {[%emt 0:01:34]} 41. g4 {[%emt 0:00:35]} ({Wrong is} 41. Rxb6 $2 Rxe3+ 42. Kxe3 Nc4+ 43. Kd4 Nxb6 $19) 41... hxg4 {[%emt 0:00:06]} 42. hxg4 {[%emt 0:00:12] [#] Hoping for g5.} Nc4 {[%emt 0:00:59]} 43. Nxc4 {[%emt 0:01:15]} Rxc4 {[%emt 0:00:04] KR-KR} 44. g5 {[%emt 0:00:24] And now g6 would win.} Rxb4 {[%emt 0:01:39]} 45. Kf3 {[%emt 0:00:26]} c5 {[%emt 0:01:30]} 46. g6 {[%emt 0:01:15][%cal Rb7b8]} Kf8 {[%emt 0:00:02]} 47. Rf7+ {[%emt 0:00:13]} Kg8 {[%emt 0:00:04]} 48. Rb7 $1 {[%emt 0:00:05][%cal Rb7b8]} Kf8 {[%emt 0:00:03]} 49. Rf7+ {[%emt 0:00:07]} Kg8 {[%emt 0:00:03]} 50. Re7 {[%emt 0:00:40][%cal Re7e8]} Kf8 {[%emt 0:00:05] Inhibits Re8+.} 51. Rb7 {[%emt 0:00:15]} Rb1 {[%emt 0:01:22]} 52. Rf7+ {[%emt 0:00:53]} Kg8 {[%emt 0:00:04]} 53. Rb7 {[%emt 0:00:11][%cal Rb7b8]} Kf8 {[%emt 0:00:07]} 54. Rf7+ {[%emt 0:00:08]} Kg8 {[%emt 0:00:05]} 55. Rb7 {[%emt 0:00:06] Weighted Error Value: White=0.04 (flawless) /Black=0.05 (flawless)} 1/2-1/2

[Event "American Cup Champions 2022"]
[Site "Saint Louis"]
[Date "2022.04.27"]
[Round "4.2"]
[White "Aronian, Levon"]
[Black "Caruana, Fabiano"]
[Result "1/2-1/2"]
[ECO "C54"]
[WhiteElo "2772"]
[BlackElo "2792"]
[Annotator "TA"]
[PlyCount "104"]
[EventDate "2022.04.20"]
[EventType "k.o."]
[EventCountry "USA"]
[SourceTitle "playchess.com"]
[Source "ChessBase"]
[SourceQuality "1"]
[TimeControl "5400+30"]

{[%evp 12,104,14,17,16,12,14,11,15,5,29,14,20,18,13,22,17,11,14,0,0,7,5,0,0,-8,23,0,0,0,24,23,22,26,20,33,92,85,85,10,21,0,126,121,113,74,75,63,46,68,60,62,116,101,128,43,102,64,67,30,20,0,0,4,0,0,0,0,85,87,150,146,180,127,112,123,193,176,158,176,146,0,0,0,0,0,0,0,0,0,0,0,0,0,0]} 1. e4 {[%emt 0:00:04]} e5 {[%emt 0:00:17]} 2. Nf3 {[%emt 0:00:07]} Nc6 {[%emt 0:00:05]} 3. Bc4 {[%emt 0:00:05]} Nf6 {[%emt 0:00:05]} 4. d3 {[%emt 0:00:06]} Bc5 {[%emt 0:00:06]} 5. O-O {[%emt 0:00:07]} O-O {[%emt 0:00:12]} 6. h3 {[%emt 0:00:05]} d6 {[%emt 0:00:33]} 7. c3 {[%emt 0:00:11]} a5 {[%emt 0:00:28] C54: Giuoco Piano: 4 c3 Nf6, main lines with 5 d4 and 5 d3.} 8. Re1 {[%emt 0:00:06]} h6 {[%emt 0:01:31]} 9. Nbd2 {[%emt 0:03:48]} Be6 {[%emt 0:00:10]} 10. Bb5 {[%emt 0:00:15]} Ba7 {[%emt 0:00:50]} 11. Nf1 {[%emt 0:01:13]} Ne7 {[%emt 0:00:09]} 12. Ng3 {[%emt 0:00:40]} c6 {[%emt 0:00:24]} 13. Ba4 {[%emt 0:00:05]} b5 {[%emt 0:00:17] [#]} 14. Bb3 $146 {[%emt 0:05:37]} ({Predecessor:} 14. Bc2 a4 15. d4 Ng6 16. Be3 Re8 17. b3 axb3 18. axb3 Qc7 19. Qd2 Bb6 20. b4 {1-0 (68) So,W (2772)-Xiong,J (2687) Chess.com INT 2021}) 14... a4 {[%emt 0:13:07]} 15. Bxe6 {[%emt 0:00:07]} fxe6 {[%emt 0:00:03]} 16. d4 {[%emt 0:01:05]} Ng6 {[%emt 0:00:48]} 17. Be3 {[%emt 0:02:38]} Nd7 {[%emt 0:04:33]} 18. Nh5 {[%emt 0:08:33]} Nf4 {[%emt 0:06:56]} 19. Bxf4 {[%emt 0:17:00]} exf4 {[%emt 0:00:05]} 20. e5 {[%emt 0:00:06]} Qe8 {[%emt 0:17:01]} 21. Nh4 $1 {[%emt 0:02:56]} f3 $1 {[%emt 0:00:38]} (21... g5 22. Qg4 $16 (22. exd6 f3 $14)) 22. Ng3 {[%emt 0:02:38]} dxe5 {[%emt 0:06:06] White must now prevent ...fxg2.} 23. Nxf3 {[%emt 0:00:07]} Qf7 {[%emt 0:03:42]} (23... exd4 $14 24. cxd4 Nf6) 24. dxe5 $16 {[%emt 0:09:18]} Nb6 {[%emt 0:03:49]} 25. Ne4 {[%emt 0:11:09]} (25. Ne2 $16) 25... Nd5 {[%emt 0:02:51][%cal Oa4a3]} 26. a3 {[%emt 0:03:22]} c5 {[%emt 0:17:53] Against Nd4} (26... Nf4 $11 {keeps the balance.}) 27. Nd6 {[%emt 0:03:34][%csl LRb5,LRf7][%cal Be4d6,Bd6b5,Bb5d4,Bd4e6,Be6f4][%mdl 32]} Qg6 {[%emt 0:00:59]} 28. Nh4 {[%emt 0:05:34]} Qg5 {[%emt 0:00:55]} 29. Qg4 {[%emt 0:01:42]} Qxg4 {[%emt 0:02:01]} 30. hxg4 {[%emt 0:00:02]} c4 {[%emt 0:00:25]} 31. Nf3 {[%emt 0:00:04]} Rf4 {[%emt 0:06:41]} (31... Rab8 $14) 32. Nxb5 {[%emt 0:02:31] Pair of Knights!} Rxg4 {[%emt 0:01:23]} 33. Kf1 {[%emt 0:05:18]} (33. Nh2 $16 Rf4 34. Re2) 33... h5 {[%emt 0:05:03]} (33... Bc5 $1 $14) 34. Rad1 {[%emt 0:02:29]} Bc5 {[%emt 0:00:46]} 35. Nbd4 {[%emt 0:05:57]} (35. Nd6 {feels hotter.} Nf4 36. Re4 Nd3 37. Nd4) 35... Nf4 {[%emt 0:00:06]} 36. g3 {[%emt 0:02:16]} (36. Re4 {looks sharper.} Nd3 37. Nd2 Rf8 38. f3) 36... Nd3 {[%emt 0:00:06]} 37. Rxd3 {[%emt 0:00:29]} cxd3 {[%emt 0:00:04]} 38. Nxe6 {[%emt 0:00:04]} Be7 {[%emt 0:03:04]} 39. Rd1 {[%emt 0:01:26]} Kf7 {[%emt 0:03:00]} (39... h4 $11) 40. Nf4 $36 {[%emt 0:01:15][%mdl 2048] Keeping Black busy.} Rd8 {[%emt 0:00:52]} (40... h4 $142) 41. Nd4 {[%emt 0:01:24]} (41. Nxh5 Rb8 $14) 41... h4 {[%emt 0:01:10]} 42. Rxd3 {[%emt 0:00:36]} (42. Nxd3 hxg3 43. Kg2 gxf2+ 44. Kxf2 g5 $11) ({White should play} 42. Kg2 $1 $18) 42... hxg3 {[%emt 0:00:36]} 43. Rf3 {[%emt 0:01:36] Nd5+ is the strong threat. White is more active.} ({Don't do} 43. fxg3 Bg5 $14) 43... gxf2 {[%emt 0:01:35]} (43... Ke8 $16 {was necessary.}) 44. Nfe6+ $18 {[%emt 0:01:15]} (44. Rxf2 Kg8 $11) 44... Ke8 {[%emt 0:00:03] Threatens to win with ...Bh4.} 45. Nxd8 {[%emt 0:00:40]} Bh4 {[%emt 0:00:22] [#] Hoping for ...Rg1+.} 46. N8e6 {[%emt 0:02:56]} (46. Ne2 $1 $16 Kxd8 (46... Bxd8 47. Kxf2) 47. Rd3+ (47. Rf4 Rxf4 48. Nxf4 Kd7 $16) 47... Ke7 48. Rd4 Rxd4 49. cxd4 (49. Nxd4 Bg5 $16)) 46... Rg1+ $11 {[%emt 0:00:05] The position is equal.} 47. Ke2 {[%emt 0:00:03]} Re1+ {[%emt 0:00:23]} 48. Kd3 {[%emt 0:00:05]} g6 {[%emt 0:00:58]} 49. Nc7+ {[%emt 0:01:40]} Kd8 {[%emt 0:00:04]} 50. Nce6+ {[%emt 0:00:21]} Ke8 {[%emt 0:00:18]} 51. Nc7+ {[%emt 0:00:38]} Kd8 {[%emt 0:00:04]} 52. Nce6+ {[%emt 0:00:33]} Ke8 {[%emt 0:00:20] White really could win this.  Weighted Error Value: White=0.15 (very precise) /Black=0.19 (very precise)} 1/2-1/2

[Event "American Cup Champions 2022"]
[Site "Saint Louis"]
[Date "2022.04.28"]
[Round "4.3"]
[White "Caruana, Fabiano"]
[Black "Aronian, Levon"]
[Result "1-0"]
[ECO "A29"]
[WhiteElo "2792"]
[BlackElo "2772"]
[Annotator "TA"]
[PlyCount "105"]
[EventDate "2022.04.20"]
[EventType "k.o."]
[EventCountry "USA"]
[SourceTitle "playchess.com"]
[Source "ChessBase"]
[SourceQuality "1"]
[TimeControl "5400+30"]

{[%evp 11,105,14,21,8,9,14,21,0,6,-9,-3,5,0,0,0,0,11,0,0,0,0,0,0,0,14,0,0,0,0,0,33,36,29,17,41,24,41,37,33,39,42,44,65,25,36,43,44,29,91,35,100,74,117,112,126,129,135,135,165,168,224,218,226,212,183,181,172,159,154,164,197,195,267,265,255,211,285,299,276,258,312,312,956,957,956,886,29969,29969,29969,29969,29953,7921,29979,29980,29981,29982]} 1. c4 {[%emt 0:00:04]} Nf6 {[%emt 0:00:09]} 2. Nc3 {[%emt 0:00:06]} e5 {[%emt 0:00:05]} 3. Nf3 {[%emt 0:00:16]} Nc6 {[%emt 0:00:05]} 4. g3 {[%emt 0:00:10]} Nd4 {[%emt 0:01:20]} 5. Bg2 {[%emt 0:00:26]} Nxf3+ {[%emt 0:00:06]} 6. Bxf3 {[%emt 0:00:04]} Bc5 {[%emt 0:00:30]} 7. d3 {[%emt 0:06:00] has lost popularity (7.0-0). A29: English Opening: Four Knights Variation with 4 g3.} O-O {[%emt 0:00:42]} 8. O-O {[%emt 0:00:54] [#]} a5 $146 {[%emt 0:01:22]} ({Predecessor:} 8... Re8 9. Bg2 c6 10. Bg5 h6 11. Bxf6 Qxf6 12. Ne4 Qe7 13. Nxc5 Qxc5 14. Qd2 a5 {½-½ (57) Dubov,D (2699)-Mamedyarov,S (2764) chess24.com INT 2020}) 9. Bg2 {[%emt 0:08:04] The position is equal.} c6 {[%emt 0:02:12]} 10. Bd2 {[%emt 0:03:22]} d6 {[%emt 0:02:14]} 11. a3 {[%emt 0:03:25]} Be6 {[%emt 0:02:18]} 12. Qc2 {[%emt 0:01:45]} h6 {[%emt 0:02:51]} 13. Na4 {[%emt 0:06:42]} Ba7 {[%emt 0:00:11]} 14. c5 {[%emt 0:00:47]} dxc5 {[%emt 0:05:54]} 15. Nxc5 {[%emt 0:00:10]} Bxc5 {[%emt 0:00:21]} 16. Qxc5 {[%emt 0:00:05]} Bd5 {[%emt 0:00:11]} 17. f3 {[%emt 0:04:55]} a4 {[%emt 0:03:23]} 18. e4 {[%emt 0:03:01]} Nd7 {[%emt 0:00:06]} 19. Qe3 {[%emt 0:02:27]} Bb3 {[%emt 0:00:09]} 20. f4 {[%emt 0:03:18]} Qb6 {[%emt 0:14:06]} 21. Qxb6 {[%emt 0:11:59]} Nxb6 {[%emt 0:00:06]} 22. Rac1 {[%emt 0:03:38]} Rfd8 {[%emt 0:02:15]} 23. Rf3 {[%emt 0:04:20]} (23. fxe5 Rxd3 24. Bc3 Nc4 $15) 23... Nd7 {[%emt 0:04:49]} 24. Bh3 {[%emt 0:00:22]} Be6 {[%emt 0:05:24]} 25. Bxe6 {[%emt 0:01:21]} fxe6 {[%emt 0:00:04]} 26. Kf2 {[%emt 0:02:20]} c5 {[%emt 0:01:30]} 27. Ke2 {[%emt 0:01:43]} b6 {[%emt 0:01:09]} 28. Bc3 {[%emt 0:03:46]} Rac8 {[%emt 0:01:48]} 29. Rff1 {[%emt 0:02:53]} Rf8 {[%emt 0:02:14]} (29... exf4 $11 {remains equal.} 30. gxf4 Nf6) 30. Ke3 {[%emt 0:03:59]} (30. Bxe5 $16 Nxe5 31. fxe5) 30... Rc7 {[%emt 0:06:00]} (30... exf4+ $14 31. gxf4 (31. Rxf4 e5 $11) 31... Kh7) 31. fxe5 {[%emt 0:06:34] White now steadily converts the win.} Rxf1 {[%emt 0:01:48]} 32. Rxf1 $16 {[%emt 0:00:04][%mdl 4096] Endgame KRB-KRN} Nb8 {[%emt 0:00:04]} 33. d4 {[%emt 0:05:21]} cxd4+ {[%emt 0:00:05]} 34. Bxd4 {[%emt 0:03:06]} Rc2 {[%emt 0:19:38]} 35. Rd1 {[%emt 0:01:07]} (35. Bxb6 $6 Rxb2 36. Bc7 Nc6 $14) 35... Nc6 {[%emt 0:00:43] [#]} (35... Rxh2 $142 36. Bc3 (36. Bxb6 Nc6 $14) 36... Kf7) 36. Bc3 $1 $18 {[%emt 0:00:09] Threatens to win with Rd6.} ({Less strong is} 36. Bxb6 Rxb2 37. Bc7 Rxh2 $14) 36... Rxh2 {[%emt 0:00:06]} 37. Rd6 {[%emt 0:03:03][%csl LRc6,LRe6]} Na5 {[%emt 0:00:01] White must now prevent ...Nc4+.} 38. Kf3 {[%emt 0:00:36]} ({Wrong is} 38. Rxe6 $2 Kf7 39. Rd6 Nc4+ 40. Kf4 g5+ 41. Kg4 Nxd6 42. exd6 Ke6 $19) 38... Kf7 {[%emt 0:09:41]} 39. Rxb6 {[%emt 0:00:05]} Nc4 {[%emt 0:03:07] [#]} 40. Rb7+ {[%emt 0:00:05]} Ke8 {[%emt 0:02:45]} 41. Rxg7 {[%emt 0:02:22]} Nxb2 {[%emt 0:00:41]} (41... Rc2 $142 42. Ra7 Nxa3 43. Rxa4 Nb5 44. Ra8+ Kf7) 42. Bb4 {[%emt 0:00:21]} Kd8 {[%emt 0:04:00]} 43. Re7 {[%emt 0:00:48]} Nc4 {[%emt 0:03:53]} 44. Rxe6 {[%emt 0:00:14]} h5 {[%emt 0:00:24]} 45. Bd6 {[%emt 0:04:10]} h4 {[%emt 0:00:11]} 46. Rg6 {[%emt 0:01:39] Strongly threatening Rg8+.} Rh3 $2 {[%emt 0:01:09]} (46... Ke8 47. gxh4 Rxh4) 47. Rg8+ {[%emt 0:01:01]} Kd7 {[%emt 0:00:01]} 48. Rg7+ {[%emt 0:00:04]} Ke8 {[%emt 0:00:04]} 49. Rc7 {[%emt 0:00:27]} Rxg3+ {[%emt 0:02:28]} 50. Kf4 {[%emt 0:00:03]} Nxd6 {[%emt 0:00:33]} 51. exd6 {[%emt 0:00:03] e5 would kill now.} Rxa3 {[%emt 0:00:05]} 52. Kf5 {[%emt 0:01:01]} Rg3 {[%emt 0:00:57]} 53. e5 {[%emt 0:00:21] Weighted Error Value: White=0.06 (flawless) /Black=0.43} 1-0